fUST/lending_fUST_20250419
["ID","MTS","AMOUNT","RATE_DAILY","PERIOD"]
[358360632,1744992019987,10000.0,0.00016,120]
[358360633,1744992026426,10000.0,0.00016,120]
[358360634,1744992035206,3260.0,0.00016,120]
[358360636,1744992093004,500.0,0.0001801,2]
[358360656,1744992330075,223.06,0.0001801,2]
[358360726,1744992631846,-160.0,0.0001887,2]
[358360727,1744992631857,-500.0,0.00018891,2]
[358360728,1744992631867,-67.10796862,0.000189,2]
[358360729,1744992631879,-646.97180417,0.000189,2]
[358360730,1744992631890,-300.0,0.00019211,2]
[358360731,1744992631900,-300.0,0.00019211,2]
[358360732,1744992631910,-15696.02671581,0.00019212,2]
[358360733,1744992631928,-9203.97328419,0.00019212,2]
[358360734,1744992631937,-632.87532124,0.00019397,2]
[358360735,1744992631947,-160.4409795,0.00020079,2]
[358360736,1744992631957,-194.7355037,0.00020306,2]
[358360737,1744992631967,-154.23778181,0.00020377,2]
[358360738,1744992631977,-300.0,0.00020474,2]
[358360739,1744992631987,-151.0,0.00020475,2]
[358360740,1744992631996,-151.0,0.00020475,2]
[358360741,1744992632006,-500.0,0.00020475,2]
[358360743,1744992632016,-500.0,0.00020475,2]
[358360745,1744992632025,-500.0,0.00020475,2]
[358360747,1744992632035,-500.0,0.00020475,2]
[358360749,1744992632044,-500.0,0.00020475,2]
[358360751,1744992632056,-500.0,0.00020475,2]
[358360754,1744992632066,-500.0,0.00020475,2]
[358360755,1744992632075,-500.0,0.00020475,2]
[358360758,1744992632085,-500.0,0.00020475,2]
[358360760,1744992632095,-500.0,0.00020475,2]
[358360762,1744992632105,-500.0,0.00020475,2]
[358360764,1744992632115,-500.0,0.00020475,2]
[358360766,1744992632125,-500.0,0.00020475,2]
[358360768,1744992632134,-500.0,0.00020475,2]
[358360770,1744992632144,-500.0,0.00020475,2]
[358360772,1744992632155,-500.0,0.00020475,2]
[358360774,1744992632164,-500.0,0.00020475,2]
[358360776,1744992632174,-500.0,0.00020475,2]
[358360778,1744992632183,-468.50813946,0.00020475,2]
[358360779,1744992632193,-500.0,0.00020475,2]
[358360782,1744992632202,-500.0,0.00020475,2]
[358360783,1744992632212,-500.0,0.00020475,2]
[358360784,1744992632222,-642.0,0.00020475,2]
[358360785,1744992632232,-500.0,0.00020475,2]
[358360786,1744992632242,-500.0,0.00020475,2]
[358360787,1744992632251,-500.0,0.00020475,2]
[358360788,1744992632261,-500.0,0.00020475,2]
[358360789,1744992632271,-500.0,0.00020475,2]
[358360790,1744992632280,-500.0,0.00020475,2]
[358360791,1744992632291,-500.0,0.00020475,2]
[358360792,1744992632300,-500.0,0.00020475,2]
[358360793,1744992632310,-500.0,0.00020475,2]
[358360794,1744992632319,-500.0,0.00020475,2]
[358360795,1744992632330,-500.0,0.00020475,2]
[358360796,1744992632340,-500.0,0.00020475,2]
[358360797,1744992632351,-500.0,0.00020475,2]
[358360798,1744992632361,-500.0,0.00020475,2]
[358360799,1744992632371,-500.0,0.00020475,2]
[358360800,1744992632382,-500.0,0.00020475,2]
[358360801,1744992632392,-500.0,0.00020475,2]
[358360802,1744992632402,-500.0,0.00020475,2]
[358360803,1744992632413,-500.0,0.00020475,2]
[358360804,1744992632424,-500.0,0.00020475,2]
[358360805,1744992632434,-200.0,0.00020475,2]
[358360806,1744992632445,-500.0,0.00020475,2]
[358360807,1744992632455,-500.0,0.00020475,2]
[358360808,1744992632465,-500.0,0.00020475,2]
[358360809,1744992632475,-500.0,0.00020475,2]
[358360810,1744992632486,-500.0,0.00020475,2]
[358360811,1744992632497,-500.0,0.00020475,2]
[358360812,1744992632507,-500.0,0.00020475,2]
[358360813,1744992632517,-500.0,0.00020475,2]
[358360814,1744992632527,-500.0,0.00020475,2]
[358360815,1744992632537,-500.0,0.00020475,2]
[358360816,1744992632547,-500.0,0.00020475,2]
[358360817,1744992632556,-500.0,0.00020475,2]
[358360818,1744992632567,-500.0,0.00020475,2]
[358360819,1744992632576,-500.0,0.00020475,2]
[358360820,1744992632585,-430.99887001,0.00020475,2]
[358360821,1744992632595,-500.0,0.00020475,2]
[358360822,1744992632605,-500.0,0.00020475,2]
[358360823,1744992632615,-500.0,0.00020475,2]
[358360824,1744992632623,-500.0,0.00020475,2]
[358360825,1744992632633,-500.0,0.00020475,2]
[358360826,1744992632643,-500.0,0.00020475,2]
[358360827,1744992632652,-500.0,0.00020475,2]
[358360828,1744992632662,-500.0,0.00020475,2]
[358360829,1744992632671,-500.0,0.00020475,2]
[358360830,1744992632681,-500.0,0.00020475,2]
[358360831,1744992632690,-500.0,0.00020475,2]
[358360832,1744992632700,-500.0,0.00020475,2]
[358360833,1744992632710,-500.0,0.00020475,2]
[358360834,1744992632719,-500.0,0.00020475,2]
[358360835,1744992632729,-500.0,0.00020475,2]
[358360836,1744992632738,-516.74893494,0.00020475,2]
[358360837,1744992632748,-500.0,0.00020475,2]
[358360838,1744992632757,-500.0,0.00020475,2]
[358360839,1744992632766,-500.0,0.00020475,2]
[358360840,1744992632775,-500.0,0.00020475,2]
[358360841,1744992632785,-2099.32701371,0.00020475,2]
[358360842,1744992632794,-500.0,0.00020475,2]
[358360843,1744992632803,-500.0,0.00020475,2]
[358360844,1744992632812,-500.0,0.00020475,2]
[358360845,1744992632821,-500.0,0.00020475,2]
[358360846,1744992632834,-500.0,0.00020475,2]
[358360847,1744992632845,-2099.32701371,0.00020475,2]
[358360848,1744992632854,-300.0,0.00020475,2]
[358360849,1744992632863,-120.402925,0.00020475,2]
[358360850,1744992632876,-379.597075,0.00020475,2]
[358360851,1744992632885,-2099.32701371,0.00020475,2]
[358360852,1744992632894,-500.0,0.00020475,2]
[358360853,1744992632903,-300.0,0.00020475,2]
[358360854,1744992632912,-500.0,0.00020475,2]
[358360855,1744992632922,-2099.32701371,0.00020475,2]
[358360856,1744992632931,-500.0,0.00020475,2]
[358360857,1744992632940,-2099.32701371,0.00020475,2]
[358360858,1744992632950,-500.0,0.00020475,2]
[358360859,1744992632959,-500.0,0.00020475,2]
[358360860,1744992632969,-2099.32701371,0.00020475,2]
[358360861,1744992632979,-2099.32701371,0.00020475,2]
[358360862,1744992632990,-2099.32701371,0.00020475,2]
[358360863,1744992633000,-2099.32701371,0.00020475,2]
[358360864,1744992633009,-2099.32701371,0.00020475,2]
[358360865,1744992633019,-2099.32701371,0.00020475,2]
[358360866,1744992633028,-2099.32701371,0.00020475,2]
[358360867,1744992633039,-2099.32701371,0.00020475,2]
[358360868,1744992633049,-2099.32701371,0.00020475,2]
[358360869,1744992633060,-2099.32701371,0.00020475,2]
[358360870,1744992633069,-2099.32701371,0.00020475,2]
[358360871,1744992633081,-2099.32701371,0.00020475,2]
[358360872,1744992633091,-2099.32701371,0.00020475,2]
[358360873,1744992633101,-2099.32701371,0.00020475,2]
[358360874,1744992633111,-2099.32701371,0.00020475,2]
[358360875,1744992633122,-2099.32701371,0.00020475,2]
[358360876,1744992633132,-2099.32701371,0.00020475,2]
[358360877,1744992633143,-2099.32701371,0.00020475,2]
[358360878,1744992633153,-2099.32701371,0.00020475,2]
[358360879,1744992633163,-2099.32701371,0.00020475,2]
[358360880,1744992633173,-2099.32701371,0.00020475,2]
[358360881,1744992633183,-2099.32701371,0.00020475,2]
[358360882,1744992633193,-2099.32701371,0.00020475,2]
[358360883,1744992633205,-2099.32701371,0.00020475,2]
[358360884,1744992633215,-2099.32701371,0.00020475,2]
[358360885,1744992633226,-2099.32701371,0.00020475,2]
[358360886,1744992633238,-2099.32701371,0.00020475,2]
[358360887,1744992633249,-2060.51592606,0.00020475,2]
[358360888,1744992633260,-2060.51592606,0.00020475,2]
[358360889,1744992633271,-2060.51592606,0.00020475,2]
[358360890,1744992633282,-2060.51592606,0.00020475,2]
[358360891,1744992633294,-2060.51592606,0.00020475,2]
[358360892,1744992633305,-2060.51592606,0.00020475,2]
[358360893,1744992633316,-2060.51592606,0.00020475,2]
[358360894,1744992633330,-2060.51592606,0.00020475,2]
[358360895,1744992633344,-2034.09905521,0.00020475,2]
[358360896,1744992633355,-2034.09905521,0.00020475,2]
[358360897,1744992633367,-2034.09905521,0.00020475,2]
[358360898,1744992633573,-2034.09905521,0.00020475,2]
[358360899,1744992633587,-2034.09905521,0.00020475,2]
[358360900,1744992633599,-2034.09905521,0.00020475,2]
[358360901,1744992633609,-2034.09905521,0.00020475,2]
[358360902,1744992633619,-2034.09905521,0.00020475,2]
[358360903,1744992633630,-2034.09905521,0.00020475,2]
[358360904,1744992633640,-2034.09905521,0.00020475,2]
[358360905,1744992633650,-2034.09905521,0.00020475,2]
[358360906,1744992633660,-1961.45266038,0.00020475,2]
[358360907,1744992633671,-1961.45266038,0.00020475,2]
[358360908,1744992633681,-1961.45266038,0.00020475,2]
[358360909,1744992633691,-1961.45266038,0.00020475,2]
[358360910,1744992633702,-1961.45266038,0.00020475,2]
[358360911,1744992633713,-1961.45266038,0.00020475,2]
[358360912,1744992633723,-1961.45266038,0.00020475,2]
[358360913,1744992633733,-1961.45266038,0.00020475,2]
[358360914,1744992633744,-1961.45266038,0.00020475,2]
[358360915,1744992633754,-1961.45266038,0.00020475,2]
[358360916,1744992633764,-1961.45266038,0.00020475,2]
[358360917,1744992633775,-1961.45266038,0.00020475,2]
[358360918,1744992633784,-1961.45266038,0.00020475,2]
[358360919,1744992633794,-1961.45266045,0.00020475,2]
[358360920,1744992633804,-151.0,0.00020476,2]
[358360921,1744992633815,-151.0,0.00020477,2]
[358360922,1744992633829,-163.903373,0.00020477,2]
[358360923,1744992633839,-151.0,0.00020477,2]
[358360924,1744992633850,-151.0,0.00020477,2]
[358360925,1744992633860,-151.0,0.00020477,2]
[358360926,1744992633871,-229.850278,0.00020477,2]
[358360927,1744992633881,-229.850278,0.00020477,2]
[358360928,1744992633891,-151.0,0.00020477,2]
[358360929,1744992633901,-255.884221,0.00020477,2]
[358360930,1744992633913,-255.884221,0.00020477,2]
[358360931,1744992633923,-4906.965247,0.00020478,2]
[358360932,1744992633933,-501.27052079,0.000205,2]
[358360933,1744992633944,-500.0,0.000205,2]
[358360934,1744992633954,-500.0,0.000205,2]
[358360935,1744992633964,-500.0,0.000205,2]
[358360936,1744992633974,-500.82613835,0.000205,2]
[358360937,1744992633984,-500.0,0.000205,2]
[358360938,1744992633993,-500.0,0.000205,2]
[358360939,1744992634004,-500.0,0.000205,2]
[358360940,1744992634013,-500.0,0.000205,2]
[358360941,1744992634023,-500.0,0.000205,2]
[358360942,1744992634032,-500.0,0.000205,2]
[358360943,1744992634043,-300.0,0.000205,2]
[358360944,1744992634053,-500.0,0.000205,2]
[358360945,1744992634064,-500.0,0.000205,2]
[358360946,1744992634074,-151.0,0.000205,2]
[358360947,1744992634086,-151.0,0.000205,2]
[358360948,1744992634097,-151.0,0.000205,2]
[358360949,1744992634107,-200.921926,0.000205,2]
[358360950,1744992634117,-229.850278,0.000205,2]
[358360951,1744992634127,-229.850278,0.000205,2]
[358360952,1744992634137,-500.0,0.000205,2]
[358360953,1744992634148,-151.0,0.000205,2]
[358360954,1744992634158,-255.884221,0.000205,2]
[358360955,1744992634168,-255.884221,0.000205,2]
[358360956,1744992634178,-152.942752,0.00020553,2]
[358360957,1744992634187,-151.0,0.00020553,2]
[358360958,1744992634197,-367.588972,0.00020554,2]
[358360959,1744992634207,-154.23778178,0.00020824,2]
[358360960,1744992634217,-738.63,0.000209,2]
[358360961,1744992634228,-1662.61655596,0.000209,3]
[358360962,1744992634238,-420.0,0.00020936,2]
[358360963,1744992634248,-154.23778178,0.0002127,2]
[358360964,1744992634258,-535.79,0.00021478,15]
[358360965,1744992634267,-1163.54167691,0.00021542,2]
[358360966,1744992634281,-543.54654503,0.00021542,2]
[358360967,1744992634298,-10852.64838096,0.00021542,2]
[358360968,1744992634308,-160.0,0.00021542,2]
[358360969,1744992634318,-160.0,0.00021542,2]
[358360970,1744992634328,-160.0,0.00021542,2]
[358360971,1744992634338,-839.29847495,0.00021542,2]
[358360972,1744992634349,-420.40766787,0.00021542,2]
[358360973,1744992634359,-160.0,0.00021546,2]
[358360974,1744992634369,-151.0,0.00021546,2]
[358360975,1744992634380,-151.0,0.0002155,2]
[358360976,1744992634391,-228.113375,0.00021554,2]
[358360977,1744992634401,-151.0,0.00021554,2]
[358360978,1744992634411,-151.0,0.00021554,2]
[358360979,1744992634421,-209.857692,0.00021554,2]
[358360980,1744992634431,-151.0,0.00021566,2]
[358360981,1744992634441,-300.71460877,0.00021568,2]
[358360982,1744992634451,-151.0,0.00021576,2]
[358360983,1744992634462,-151.0,0.00021581,2]
[358360984,1744992634473,-151.0,0.00021581,2]
[358360985,1744992634483,-3579.2651309,0.00021592,2]
[358361007,1744992638043,-1856.1,0.00021592,2]
[358361010,1744992638749,-4471.65201548,0.00021592,2]
[358361019,1744992640235,-735.78660761,0.00021592,2]
[358361023,1744992642994,-1358.87110601,0.00021592,2]
[358361025,1744992643004,-151.0,0.00021593,2]
[358361026,1744992643014,-151.0,0.00021593,2]
[358361027,1744992643024,-151.0,0.00021593,2]
[358361028,1744992643034,-164.614547,0.00021593,2]
[358361029,1744992643044,-684.4613692,0.00021697,2]
[358361030,1744992643054,-151.0,0.00021697,2]
[358361031,1744992643064,-32747.4361222,0.00021699,2]
[358361032,1744992643075,-157.407716,0.00021699,2]
[358361033,1744992643085,-155.018348,0.00021699,2]
[358361034,1744992643095,-151.0,0.00021699,2]
[358361035,1744992643105,-151.0,0.00021699,2]
[358361036,1744992643115,-151.0,0.00021699,2]
[358361037,1744992643125,-151.0,0.00021699,2]
[358361038,1744992643135,-151.0,0.00021699,2]
[358361039,1744992643146,-151.0,0.00021699,2]
[358361040,1744992643156,-229.850278,0.00021699,2]
[358361041,1744992643165,-229.850278,0.00021699,2]
[358361042,1744992643175,-151.0,0.00021699,2]
[358361043,1744992643185,-255.884221,0.00021699,2]
[358361044,1744992643195,-255.884221,0.00021699,2]
[358361045,1744992643205,-151.0,0.00021699,2]
[358361046,1744992643215,-151.0,0.00021699,2]
[358361047,1744992643225,-151.0,0.00021699,2]
[358361048,1744992643241,-151.0,0.00021699,2]
[358361049,1744992643252,-151.0,0.00021699,2]
[358361050,1744992643262,-151.0,0.00021699,2]
[358361051,1744992643273,-200.0,0.000217,2]
[358361052,1744992643283,-154.23778178,0.00021717,2]
[358361053,1744992643293,-177.38996013,0.00021723,2]
[358361055,1744992643303,-2283.00517108,0.00021723,2]
[358361056,1744992643313,-517.4779,0.00021724,2]
[358361057,1744992643323,-1662.61655582,0.00021762,3]
[358361058,1744992643334,-204.0,0.0002178,2]
[358361059,1744992643344,-12907.56455699,0.00021817,2]
[358361060,1744992643356,-4117.42479211,0.00021817,3]
[358361061,1744992643365,-313893.63636008,0.00021817,2]
[358361062,1744992643378,-19551.7163454,0.00021817,2]
[358361108,1744992646265,-281.972665,0.00020475,2]
[358361109,1744992646275,-177.38996013,0.00021698,2]
[358361110,1744992646286,-579.40627223,0.00021817,2]
[358361113,1744992793450,1001.0,0.0001801,2]
[358361120,1744993409316,500.05,0.0001801,2]
[358361195,1744993832004,-300.0,0.00018041,2]
[358361197,1744993832014,-168.04,0.00018041,2]
[358361199,1744993832026,-131.96,0.00018041,2]
[358361201,1744993832036,-500.0,0.00018042,2]
[358361203,1744993832045,-163.16757105,0.00018042,2]
[358361204,1744993832055,-500.0,0.00018042,2]
[358361205,1744993832065,-500.0,0.00018042,2]
[358361206,1744993832074,-500.0,0.00018042,2]
[358361207,1744993832085,-500.0,0.00018042,2]
[358361208,1744993832094,-500.0,0.00018042,2]
[358361209,1744993832104,-500.0,0.00018042,2]
[358361210,1744993832114,-500.0,0.00018042,2]
[358361212,1744993832123,-500.0,0.00018042,2]
[358361214,1744993832132,-500.0,0.00018042,2]
[358361217,1744993832142,-238.0,0.00018042,2]
[358361219,1744993832152,-467.25826288,0.00018042,2]
[358361220,1744993832164,-32.74173712,0.00018042,2]
[358361221,1744993832174,-500.0,0.00018042,2]
[358361222,1744993832185,-500.0,0.00018042,2]
[358361223,1744993832195,-500.0,0.00018042,2]
[358361224,1744993832207,-500.0,0.00018042,2]
[358361225,1744993832216,-300.0,0.00018042,2]
[358361226,1744993832226,-380.28586467,0.00018042,2]
[358361227,1744993832236,-500.0,0.00018042,2]
[358361228,1744993832246,-500.0,0.00018042,2]
[358361229,1744993832255,-500.0,0.00018042,2]
[358361230,1744993832265,-316.98655531,0.00018042,2]
[358361231,1744993832274,-500.0,0.00018042,2]
[358361232,1744993832284,-500.0,0.00018042,2]
[358361233,1744993832293,-500.0,0.00018042,2]
[358361234,1744993832303,-500.0,0.00018042,2]
[358361235,1744993832312,-500.0,0.00018042,2]
[358361236,1744993832322,-86.4455975,0.00018042,2]
[358361275,1744993838121,-413.5544025,0.00018042,2]
[358361277,1744993838131,-500.0,0.00018042,2]
[358361279,1744993838142,-500.0,0.00018042,2]
[358361281,1744993838151,-500.0,0.00018042,2]
[358361283,1744993838161,-99.37654479,0.00018042,2]
[358361285,1744993838173,-297.53227652,0.00018042,2]
[358361287,1744993838185,-103.09117869,0.00018042,2]
[358361289,1744993838195,-500.0,0.00018042,2]
[358361291,1744993838204,-500.0,0.00018042,2]
[358361293,1744993838214,-500.0,0.00018042,2]
[358361295,1744993838223,-500.0,0.00018042,2]
[358361297,1744993838233,-500.0,0.00018042,2]
[358361299,1744993838243,-500.0,0.00018042,2]
[358361302,1744993838253,-500.0,0.00018042,2]
[358361305,1744993838263,-500.0,0.00018042,2]
[358361307,1744993838273,-500.0,0.00018042,2]
[358361309,1744993838282,-500.0,0.00018042,2]
[358361311,1744993838292,-500.0,0.00018042,2]
[358361313,1744993838301,-500.0,0.00018042,2]
[358361315,1744993838311,-115.77152108,0.00018042,2]
[358361318,1744993838334,-384.22847892,0.00018042,2]
[358361320,1744993838344,-500.0,0.00018042,2]
[358361322,1744993838354,-500.0,0.00018042,2]
[358361325,1744993838364,-500.0,0.00018042,2]
[358361327,1744993838373,-500.0,0.00018042,2]
[358361329,1744993838382,-500.0,0.00018042,2]
[358361331,1744993838394,-500.0,0.00018042,2]
[358361333,1744993838404,-472.57278197,0.00018042,2]
[358361335,1744993838413,-500.0,0.00018042,2]
[358361337,1744993838423,-106.20970944,0.00018042,2]
[358361553,1744993840542,-393.79029056,0.00018042,2]
[358361555,1744993840552,-500.0,0.00018042,2]
[358361557,1744993840563,-469.71376947,0.00018042,2]
[358361559,1744993840575,-30.28623053,0.00018042,2]
[358361562,1744993840585,-386.36867283,0.00018044,2]
[358361574,1744993843088,-519.47999996,0.00018044,2]
[358361575,1744993843145,-10322.11857171,0.00018044,2]
[358361576,1744993843155,-3034.36382299,0.0001867,2]
[358361577,1744993843165,-199.56747498,0.0001877,2]
[358361578,1744993843175,-476.05318186,0.000189,2]
[358361579,1744993843184,-256.77573486,0.00018999,2]
[358361580,1744993843194,-26281.72214101,0.00019,2]
[358361581,1744993843203,-500.0,0.00019,2]
[358361583,1744993843212,-500.0,0.00019,2]
[358361585,1744993843222,-501.3316551,0.00019,2]
[358361587,1744993843232,-1000.0,0.00019,20]
[358361589,1744993843241,-1551.77545235,0.000193,2]
[358361591,1744993843251,-420.0,0.00019684,2]
[358361593,1744993843260,-250.0,0.00019811,2]
[358361594,1744993843269,-420.0,0.00019815,2]
[358361595,1744993843279,-1551.77545209,0.00019831,2]
[358361596,1744993843287,-1342.18057873,0.0002,2]
[358361597,1744993843299,-1125.0,0.0002,2]
[358361598,1744993843311,-632.02137047,0.0002,2]
[358361604,1744993846141,-1982.31613463,0.0002,2]
[358361605,1744993846153,-1781.54395919,0.0002,2]
[358361606,1744993846252,-1668.20009691,0.0002,2]
[358361607,1744993846284,-1255.5,0.0002,2]
[358361608,1744993846295,-3610.95130011,0.0002,2]
[358361614,1744993927273,5361.07405147,0.00017941,2]
[358361615,1744993942469,219.32388621,0.00017941,2]
[358361616,1744993976926,250.0,0.00017941,2]
[358361617,1744994012436,1000.0,0.00017941,2]
[358361618,1744994090977,380.66914979,0.00017939,2]
[358361619,1744994165808,10425.59823259,0.00017938,2]
[358361620,1744994186175,35975.24102229,0.0001794,2]
[358361621,1744994285474,175.45910896,0.00017937,2]
[358361622,1744994320075,72954.40470372,0.00017938,2]
[358361623,1744994321240,333.08550604,0.00017936,2]
[358361624,1744994546765,291.44981782,0.00017935,2]
[358361625,1744994626374,175.45910894,0.00017934,2]
[358361626,1744994777243,255.01859061,0.00017933,2]
[358361641,1744994963927,175.45910894,0.00017931,2]
[358361645,1744994998047,396.129706,0.00017036,2]
[358361677,1744995032212,-151.0,0.00018022,2]
[358361678,1744995032222,-300.0,0.0001803,2]
[358361680,1744995032232,-300.0,0.0001803,2]
[358361682,1744995032242,-300.0,0.00018031,2]
[358361684,1744995032252,-338.34284732,0.00018031,2]
[358361686,1744995032262,-500.0,0.00018031,2]
[358361688,1744995032272,-200.0,0.00018031,2]
[358361690,1744995032281,-1060.53947181,0.00018031,2]
[358361691,1744995032292,-555.19929333,0.00018031,2]
[358361693,1744995032301,-1060.53947181,0.00018031,2]
[358361696,1744995032311,-391.68054951,0.00018031,2]
[358361698,1744995032321,-1060.53947181,0.00018031,2]
[358361701,1744995032333,-1060.53947181,0.00018031,2]
[358361703,1744995032343,-1060.53947181,0.00018031,2]
[358361706,1744995032353,-1060.53947181,0.00018031,2]
[358361708,1744995032363,-1060.53947181,0.00018031,2]
[358361710,1744995032372,-1060.53947181,0.00018031,2]
[358361712,1744995032382,-1060.53947181,0.00018031,2]
[358361714,1744995032392,-1060.53947181,0.00018031,2]
[358361716,1744995032402,-1060.53947181,0.00018031,2]
[358361718,1744995032412,-1060.53947181,0.00018031,2]
[358361720,1744995032422,-1060.53947181,0.00018031,2]
[358361722,1744995032432,-780.99688231,0.00018031,2]
[358361769,1744995038411,-279.5425895,0.00018031,2]
[358361772,1744995038421,-1060.53947181,0.00018031,2]
[358361774,1744995038432,-1060.53947181,0.00018031,2]
[358361776,1744995038441,-1060.53947181,0.00018031,2]
[358361778,1744995038451,-1060.53947181,0.00018031,2]
[358361780,1744995038460,-1060.53947181,0.00018031,2]
[358361782,1744995038470,-1060.53947181,0.00018031,2]
[358361784,1744995038479,-1060.53947181,0.00018031,2]
[358361799,1744995038736,-362.25462108,0.00018031,2]
[358361802,1744995038749,-698.28485073,0.00018031,2]
[358361804,1744995038758,-1060.53947181,0.00018031,2]
[358361806,1744995038768,-1060.53947181,0.00018031,2]
[358361808,1744995038777,-1060.53947181,0.00018031,2]
[358361810,1744995038787,-1060.53947181,0.00018031,2]
[358361812,1744995038796,-702.70249879,0.00018031,2]
[358361814,1744995038807,-357.83697302,0.00018031,2]
[358361816,1744995038817,-1060.53947181,0.00018031,2]
[358361818,1744995038827,-1060.53947181,0.00018031,2]
[358361820,1744995038836,-1060.53947181,0.00018031,2]
[358361822,1744995038850,-664.81992142,0.00018031,2]
[358361861,1744995040606,-395.71955039,0.00018031,2]
[358361862,1744995040619,-903.01483127,0.00018031,2]
[358361863,1744995040659,-157.52464054,0.00018031,2]
[358361864,1744995040668,-1060.53947181,0.00018031,2]
[358361865,1744995040678,-1060.53947181,0.00018031,2]
[358361866,1744995040688,-1060.53947181,0.00018031,2]
[358361867,1744995040698,-1060.53947181,0.00018031,2]
[358361868,1744995040707,-1060.53947181,0.00018031,2]
[358361869,1744995040717,-1060.53947181,0.00018031,2]
[358361870,1744995040727,-1060.53947181,0.00018031,2]
[358361871,1744995040737,-1060.53947181,0.00018031,2]
[358361872,1744995040747,-1060.53947181,0.00018031,2]
[358361873,1744995040757,-1060.53947181,0.00018031,2]
[358361874,1744995040768,-1060.53947181,0.00018031,2]
[358361875,1744995040778,-1060.53947181,0.00018031,2]
[358361876,1744995040788,-1060.53947181,0.00018031,2]
[358361877,1744995040797,-1060.53947181,0.00018031,2]
[358361878,1744995040808,-1060.53947181,0.00018031,2]
[358361879,1744995040819,-1060.53947181,0.00018031,2]
[358361880,1744995040830,-1060.53947181,0.00018031,2]
[358361881,1744995040840,-1060.53947181,0.00018031,2]
[358361882,1744995040853,-1060.53947181,0.00018031,2]
[358361883,1744995040863,-1060.53947181,0.00018031,2]
[358361884,1744995040873,-1060.53947181,0.00018031,2]
[358361885,1744995040883,-1060.53947181,0.00018031,2]
[358361886,1744995040894,-1060.53947181,0.00018031,2]
[358361887,1744995040904,-2380.99776022,0.00018031,2]
[358361888,1744995040915,-376.13944267,0.00018031,2]
[358361889,1744995040928,-763.86,0.00018031,2]
[358361895,1744995043268,-417.84001803,0.00018031,2]
[358361896,1744995043280,-823.15829952,0.00018031,2]
[358361897,1744995043290,-2380.99776022,0.00018031,2]
[358361898,1744995043299,-2380.99776022,0.00018031,2]
[358361899,1744995043309,-2380.99776022,0.00018031,2]
[358361900,1744995043318,-2380.99776022,0.00018031,2]
[358361901,1744995043328,-2380.99776022,0.00018031,2]
[358361902,1744995043338,-2380.99776022,0.00018031,2]
[358361903,1744995043347,-2380.99776022,0.00018031,2]
[358361904,1744995043357,-2380.99776022,0.00018031,2]
[358361905,1744995043367,-2380.99776022,0.00018031,2]
[358361906,1744995043376,-2380.99776022,0.00018031,2]
[358361907,1744995043386,-2380.99776022,0.00018031,2]
[358361908,1744995043395,-2380.99776022,0.00018031,2]
[358361909,1744995043405,-2380.99776022,0.00018031,2]
[358361910,1744995043414,-2380.99776022,0.00018031,2]
[358361911,1744995043423,-374.63277489,0.00018031,2]
[358361912,1744995043447,-2006.36498533,0.00018031,2]
[358361913,1744995043457,-700.57095499,0.00018031,2]
[358361914,1744995043468,-1036.06497871,0.00018031,2]
[358361923,1744995046301,-644.36182652,0.00018031,2]
[358361924,1744995046311,-551.09817348,0.00018031,2]
[358361925,1744995046323,-1829.89958674,0.00018031,2]
[358361926,1744995046333,-2380.99776022,0.00018031,2]
[358361927,1744995046342,-2380.99776022,0.00018031,2]
[358361928,1744995046352,-2380.99776022,0.00018031,2]
[358361929,1744995046362,-2380.99776022,0.00018031,2]
[358361930,1744995046371,-1123.76412284,0.00018031,2]
[358361931,1744995046383,-1257.23363738,0.00018031,2]
[358361932,1744995046392,-431.96594852,0.00018031,2]
[358361933,1744995046408,-1949.0318117,0.00018031,2]